[Event "Early-Titled-Tuesday-Blitz-January-30-2024"]
[Site "Chess.com"]
[Date "2024.01.30"]
[Round "1"]
[White "astralpulse"]
[Black "szefru"]
[Result "1/2-1/2"]
[WhiteElo "2609"]
[BlackElo "2282"]
[TimeControl "180+1"]
[EndTime "8:08:49 PST"]
[Termination "Game drawn by repetition"]

1. Nf3 {[%clk 0:02:59.6]} 1... Nf6 {[%clk 0:02:59.6]} 2. d4 {[%clk 0:02:59.8]}
2... g6 {[%clk 0:02:59.7]} 3. g3 {[%clk 0:03:00]} 3... Bg7 {[%clk 0:03:00]} 4.
Bg2 {[%clk 0:03:00.6]} 4... d5 {[%clk 0:03:00.7]} 5. O-O {[%clk 0:03:00.7]} 5...
O-O {[%clk 0:03:01.5]} 6. Be3 {[%clk 0:02:59.7]} 6... Ng4 {[%clk 0:02:57.5]} 7.
Bf4 {[%clk 0:02:54.9]} 7... c5 {[%clk 0:02:52.7]} 8. c3 {[%clk 0:02:51.6]} 8...
cxd4 {[%clk 0:02:51.8]} 9. cxd4 {[%clk 0:02:51.5]} 9... Nc6 {[%clk 0:02:51.9]}
10. Nc3 {[%clk 0:02:51.3]} 10... Na5 {[%clk 0:02:11.1]} 11. Rc1 {[%clk
0:02:44.4]} 11... Nc4 {[%clk 0:02:03.6]} 12. h3 {[%clk 0:01:45.9]} 12... Nf6
{[%clk 0:02:02.5]} 13. Ne5 {[%clk 0:01:44.4]} 13... Nh5 {[%clk 0:01:10.4]} 14.
Nxd5 {[%clk 0:01:34.6]} 14... Nxf4 {[%clk 0:01:05.3]} 15. gxf4 {[%clk
0:01:34.6]} 15... Nd6 {[%clk 0:01:02.9]} 16. Nc3 {[%clk 0:01:24.9]} 16... Bh6
{[%clk 0:00:56.7]} 17. e3 {[%clk 0:01:24.1]} 17... Nf5 {[%clk 0:00:52.2]} 18.
Qe2 {[%clk 0:00:50.5]} 18... Nh4 {[%clk 0:00:50.8]} 19. f3 {[%clk 0:00:50.2]}
19... Nxg2 {[%clk 0:00:49.9]} 20. Qxg2 {[%clk 0:00:49.9]} 20... f6 {[%clk
0:00:47.6]} 21. Ng4 {[%clk 0:00:43.9]} 21... Bg7 {[%clk 0:00:47.5]} 22. Rfd1
{[%clk 0:00:41.3]} 22... Be6 {[%clk 0:00:30.7]} 23. d5 {[%clk 0:00:41]} 23...
Bd7 {[%clk 0:00:31]} 24. e4 {[%clk 0:00:40.6]} 24... Qb6+ {[%clk 0:00:30]} 25.
Kh1 {[%clk 0:00:39.1]} 25... Rad8 {[%clk 0:00:19.9]} 26. h4 {[%clk 0:00:37.8]}
26... h5 {[%clk 0:00:19.1]} 27. Nf2 {[%clk 0:00:33.3]} 27... Kh7 {[%clk
0:00:19.6]} 28. Rg1 {[%clk 0:00:31.8]} 28... Be8 {[%clk 0:00:20.1]} 29. Nd3
{[%clk 0:00:31.4]} 29... e5 {[%clk 0:00:16.4]} 30. f5 {[%clk 0:00:30.8]} 30...
g5 {[%clk 0:00:14.4]} 31. hxg5 {[%clk 0:00:30.3]} 31... fxg5 {[%clk 0:00:15.1]}
32. Qxg5 {[%clk 0:00:30]} 32... Bh6 {[%clk 0:00:15.7]} 33. Qe7+ {[%clk
0:00:27.2]} 33... Rf7 {[%clk 0:00:15]} 34. Qxe5 {[%clk 0:00:26.7]} 34... Bxc1
{[%clk 0:00:14.6]} 35. Nxc1 {[%clk 0:00:23]} 35... Bd7 {[%clk 0:00:11.1]} 36. f6
{[%clk 0:00:19.6]} 36... Rxf6 {[%clk 0:00:04.5]} 37. Nd3 {[%clk 0:00:16.8]}
37... Rg8 {[%clk 0:00:03.3]} 38. Rg2 {[%clk 0:00:07]} 38... Rxg2 {[%clk
0:00:03.1]} 39. Kxg2 {[%clk 0:00:07.4]} 39... Rg6+ {[%clk 0:00:03.9]} 40. Kf1
{[%clk 0:00:06.7]} 40... Qg1+ {[%clk 0:00:04.6]} 41. Ke2 {[%clk 0:00:06.6]}
41... Rg2+ {[%clk 0:00:05.3]} 42. Nf2 {[%clk 0:00:06.8]} 42... Qxf2+ {[%clk
0:00:05.1]} 43. Kd3 {[%clk 0:00:07.7]} 43... Qd2+ {[%clk 0:00:05.4]} 44. Kc4
{[%clk 0:00:08.2]} 44... b5+ {[%clk 0:00:04.5]} 45. Kc5 {[%clk 0:00:08.3]} 45...
Qe3+ {[%clk 0:00:03.9]} 46. Kd6 {[%clk 0:00:09.1]} 46... Qh6+ {[%clk 0:00:03.1]}
47. Kc7 {[%clk 0:00:08.2]} 47... Rg7 {[%clk 0:00:03.9]} 48. d6 {[%clk
0:00:06.7]} 48... Be6+ {[%clk 0:00:03.7]} 49. d7 {[%clk 0:00:07.1]} 49... Rxd7+
{[%clk 0:00:03.4]} 50. Kc6 {[%clk 0:00:06.8]} 50... Qg6 {[%clk 0:00:02.9]} 51.
Kc5 {[%clk 0:00:06.4]} 51... Bf7 {[%clk 0:00:03.2]} 52. Nd5 {[%clk 0:00:06.9]}
52... Rd8 {[%clk 0:00:02.5]} 53. Nf6+ {[%clk 0:00:06.5]} 53... Kh6 {[%clk
0:00:01.8]} 54. Qf4+ {[%clk 0:00:06]} 54... Qg5+ {[%clk 0:00:02.4]} 55. Qxg5+
{[%clk 0:00:06.3]} 55... Kxg5 {[%clk 0:00:03.3]} 56. e5 {[%clk 0:00:07.1]} 56...
Kf5 {[%clk 0:00:03.1]} 57. Ne4 {[%clk 0:00:06.4]} 57... Kxe5 {[%clk 0:00:03.4]}
58. Ng5 {[%clk 0:00:06.9]} 58... Kf4 {[%clk 0:00:04.2]} 59. Nxf7 {[%clk
0:00:06.9]} 59... Rf8 {[%clk 0:00:04.9]} 60. Nd6 {[%clk 0:00:07.2]} 60... Rf5+
{[%clk 0:00:05.8]} 61. Kc6 {[%clk 0:00:07.1]} 61... Rf6 {[%clk 0:00:05.8]} 62.
Kd5 {[%clk 0:00:07]} 62... h4 {[%clk 0:00:06.4]} 63. Nxb5 {[%clk 0:00:07.3]}
63... h3 {[%clk 0:00:06.6]} 64. Nd4 {[%clk 0:00:08.1]} 64... Rf8 {[%clk
0:00:06]} 65. Ne2+ {[%clk 0:00:09]} 65... Kxf3 {[%clk 0:00:06.4]} 66. Ng1+
{[%clk 0:00:09]} 66... Kg2 {[%clk 0:00:07.3]} 67. Nxh3 {[%clk 0:00:09.7]} 67...
Kxh3 {[%clk 0:00:07.3]} 68. b4 {[%clk 0:00:10.6]} 68... Rf2 {[%clk 0:00:07.7]}
69. a4 {[%clk 0:00:10.4]} 69... Rg2 {[%clk 0:00:07.6]} 70. a5 {[%clk 0:00:10.7]}
70... Rg5+ {[%clk 0:00:08.5]} 71. Kc6 {[%clk 0:00:11]} 71... Kg4 {[%clk
0:00:08.9]} 72. b5 {[%clk 0:00:11]} 72... Kf4 {[%clk 0:00:08.9]} 73. a6 {[%clk
0:00:11.4]} 73... Rg7 {[%clk 0:00:08.8]} 74. b6 {[%clk 0:00:11.4]} 74... axb6
{[%clk 0:00:09.6]} 75. Kxb6 {[%clk 0:00:11.6]} 75... Ke5 {[%clk 0:00:10.1]} 76.
a7 {[%clk 0:00:12]} 76... Rg6+ {[%clk 0:00:10.6]} 77. Kb7 {[%clk 0:00:12.1]}
77... Rg7+ {[%clk 0:00:11.5]} 78. Kb6 {[%clk 0:00:12.2]} 78... Rg8 {[%clk
0:00:12]} 79. Kb7 {[%clk 0:00:12.3]} 79... Rg7+ {[%clk 0:00:12.6]} 80. Kb8
{[%clk 0:00:12.4]} 80... Rg8+ {[%clk 0:00:13.1]} 81. Kb7 {[%clk 0:00:12.7]}
81... Rg7+ {[%clk 0:00:13.9]} 1/2-1/2

[Event "Early-Titled-Tuesday-Blitz-January-30-2024"]
[Site "Chess.com"]
[Date "2024.01.30"]
[Round "1"]
[White "Sattarov_Bobur"]
[Black "ACollins05"]
[Result "0-1"]
[WhiteElo "2780"]
[BlackElo "2459"]
[TimeControl "180+1"]
[EndTime "8:08:58 PST"]
[Termination "ACollins05 won on time"]

1. e4 {[%clk 0:03:00.9]} 1... c5 {[%clk 0:02:57.5]} 2. Nc3 {[%clk 0:02:59.8]}
2... Nc6 {[%clk 0:02:54.6]} 3. Nge2 {[%clk 0:03:00.1]} 3... Nf6 {[%clk
0:02:53.4]} 4. d4 {[%clk 0:03:00.3]} 4... cxd4 {[%clk 0:02:54.3]} 5. Nxd4 {[%clk
0:03:01.2]} 5... d6 {[%clk 0:02:54.7]} 6. f3 {[%clk 0:03:00.8]} 6... e5 {[%clk
0:02:53.8]} 7. Nb3 {[%clk 0:03:00.8]} 7... Be6 {[%clk 0:02:53.5]} 8. Be3 {[%clk
0:02:58.5]} 8... d5 {[%clk 0:02:53.6]} 9. exd5 {[%clk 0:02:55.5]} 9... Nxd5
{[%clk 0:02:54.5]} 10. Nxd5 {[%clk 0:02:55.6]} 10... Qxd5 {[%clk 0:02:55.4]} 11.
Qxd5 {[%clk 0:02:49.2]} 11... Bxd5 {[%clk 0:02:56.3]} 12. O-O-O {[%clk
0:02:49.2]} 12... O-O-O {[%clk 0:02:56.4]} 13. Bb5 {[%clk 0:02:49.6]} 13... a6
{[%clk 0:02:55.5]} 14. Be2 {[%clk 0:02:43.8]} 14... Kc7 {[%clk 0:02:47.2]} 15.
Kb1 {[%clk 0:02:31.7]} 15... Be7 {[%clk 0:02:46]} 16. c3 {[%clk 0:02:29.4]}
16... Be6 {[%clk 0:02:43]} 17. Nc5 {[%clk 0:02:28.5]} 17... Bf5+ {[%clk
0:02:36.3]} 18. Kc1 {[%clk 0:02:24]} 18... Rxd1+ {[%clk 0:02:34.7]} 19. Rxd1
{[%clk 0:02:23.4]} 19... Rd8 {[%clk 0:02:34.6]} 20. Na4 {[%clk 0:02:21.6]} 20...
Rxd1+ {[%clk 0:02:33.4]} 21. Kxd1 {[%clk 0:02:22.5]} 21... Be6 {[%clk
0:02:16.8]} 22. Bb6+ {[%clk 0:02:17.7]} 22... Kc8 {[%clk 0:02:14.3]} 23. b3
{[%clk 0:02:15.1]} 23... Bd8 {[%clk 0:02:13.2]} 24. Be3 {[%clk 0:02:11.2]} 24...
h5 {[%clk 0:01:58.8]} 25. Kc2 {[%clk 0:01:55.2]} 25... Be7 {[%clk 0:01:47]} 26.
Nc5 {[%clk 0:01:51.1]} 26... Bf5+ {[%clk 0:01:44.8]} 27. Bd3 {[%clk 0:01:51.1]}
27... Bxd3+ {[%clk 0:01:43.8]} 28. Kxd3 {[%clk 0:01:51.5]} 28... Bxc5 {[%clk
0:01:43.4]} 29. Bxc5 {[%clk 0:01:51.4]} 29... Kd7 {[%clk 0:01:43.7]} 30. a4
{[%clk 0:01:39.6]} 30... Ke6 {[%clk 0:01:42.9]} 31. c4 {[%clk 0:01:33]} 31... f5
{[%clk 0:01:39.5]} 32. b4 {[%clk 0:01:32.4]} 32... Nb8 {[%clk 0:01:28.4]} 33. b5
{[%clk 0:01:28.2]} 33... Nd7 {[%clk 0:01:28.5]} 34. Be3 {[%clk 0:01:26.2]} 34...
Nf6 {[%clk 0:01:23.7]} 35. Kc3 {[%clk 0:01:20.8]} 35... e4 {[%clk 0:01:22.4]}
36. Kd4 {[%clk 0:01:16.9]} 36... exf3 {[%clk 0:01:21.1]} 37. gxf3 {[%clk
0:01:16.9]} 37... Nd7 {[%clk 0:01:18.6]} 38. c5 {[%clk 0:01:13.8]} 38... axb5
{[%clk 0:01:18]} 39. axb5 {[%clk 0:01:13.8]} 39... Ne5 {[%clk 0:01:17.4]} 40. c6
{[%clk 0:00:33.6]} 40... bxc6 {[%clk 0:01:12.7]} 41. b6 {[%clk 0:00:33.8]} 41...
Nxf3+ {[%clk 0:00:46.3]} 42. Kc5 {[%clk 0:00:28.9]} 42... Ne5 {[%clk 0:00:45.8]}
43. b7 {[%clk 0:00:28.7]} 43... Ke7 {[%clk 0:00:20.9]} 44. Bf4 {[%clk 0:00:22]}
44... Nd7+ {[%clk 0:00:20.4]} 45. Kxc6 {[%clk 0:00:21.5]} 45... Ke6 {[%clk
0:00:21]} 46. h4 {[%clk 0:00:20.5]} 46... Ke7 {[%clk 0:00:20.8]} 47. Bh2 {[%clk
0:00:19.7]} 47... Ke6 {[%clk 0:00:21.1]} 48. Bd6 {[%clk 0:00:19.6]} 48... g6
{[%clk 0:00:18.6]} 49. Bf4 {[%clk 0:00:18]} 49... Ke7 {[%clk 0:00:18.8]} 50. Bg3
{[%clk 0:00:18.1]} 50... Kd8 {[%clk 0:00:17.5]} 51. Kd6 {[%clk 0:00:16.4]} 51...
Ke8 {[%clk 0:00:15.7]} 52. Bf4 {[%clk 0:00:15.2]} 52... Kd8 {[%clk 0:00:15.4]}
53. Be3 {[%clk 0:00:15.1]} 53... Ke8 {[%clk 0:00:15.2]} 54. Bg5 {[%clk
0:00:15.4]} 54... Nb8 {[%clk 0:00:14.1]} 55. Kc7 {[%clk 0:00:13.7]} 55... Nd7
{[%clk 0:00:13.8]} 56. Kd6 {[%clk 0:00:09.5]} 56... Nb8 {[%clk 0:00:13.6]} 57.
Ke6 {[%clk 0:00:09.8]} 57... Nd7 {[%clk 0:00:13.2]} 58. Bf4 {[%clk 0:00:09.1]}
58... Nc5+ {[%clk 0:00:13.1]} 59. Kf6 {[%clk 0:00:09.3]} 59... Nxb7 {[%clk
0:00:13.6]} 60. Kxg6 {[%clk 0:00:09.8]} 60... Nc5 {[%clk 0:00:10.5]} 61. Kxh5
{[%clk 0:00:06.9]} 61... Ne6 {[%clk 0:00:10.7]} 62. Be5 {[%clk 0:00:06.8]} 62...
Kf7 {[%clk 0:00:10.7]} 63. Kh6 {[%clk 0:00:06.9]} 63... Kg8 {[%clk 0:00:10.8]}
64. Kg6 {[%clk 0:00:06.9]} 64... f4 {[%clk 0:00:10.3]} 65. h5 {[%clk 0:00:07]}
65... f3 {[%clk 0:00:08.4]} 66. h6 {[%clk 0:00:07.1]} 66... Nf8+ {[%clk
0:00:08.6]} 0-1

[Event "Early-Titled-Tuesday-Blitz-January-30-2024"]
[Site "Chess.com"]
[Date "2024.01.30"]
[Round "1"]
[White "Lion-Al-Messi"]
[Black "ritanovikova"]
[Result "0-1"]
[WhiteElo "2565"]
[BlackElo "2206"]
[TimeControl "180+1"]
[EndTime "8:09:04 PST"]
[Termination "ritanovikova won by checkmate"]

1. e4 {[%clk 0:03:00.9]} 1... e5 {[%clk 0:02:57.2]} 2. Nf3 {[%clk 0:03:01]} 2...
Nf6 {[%clk 0:02:56.8]} 3. d4 {[%clk 0:03:00.5]} 3... Nxe4 {[%clk 0:02:50.5]} 4.
Bd3 {[%clk 0:02:59.8]} 4... d5 {[%clk 0:02:45.5]} 5. Nxe5 {[%clk 0:02:59.3]}
5... Bd6 {[%clk 0:02:36.1]} 6. Nc3 {[%clk 0:02:55.6]} 6... Nxc3 {[%clk 0:02:26]}
7. bxc3 {[%clk 0:02:56.5]} 7... Qe7 {[%clk 0:02:15.3]} 8. O-O {[%clk 0:02:54.9]}
8... Nd7 {[%clk 0:02:02.1]} 9. Nxd7 {[%clk 0:02:44.5]} 9... Bxd7 {[%clk
0:01:58.4]} 10. Re1 {[%clk 0:02:44.6]} 10... Be6 {[%clk 0:01:58.5]} 11. f4
{[%clk 0:02:44.9]} 11... O-O-O {[%clk 0:01:23.4]} 12. f5 {[%clk 0:02:40.9]}
12... Qh4 {[%clk 0:01:23]} 13. fxe6 {[%clk 0:02:32.3]} 13... Qxh2+ {[%clk
0:01:20.9]} 14. Kf1 {[%clk 0:02:30.2]} 14... Bg3 {[%clk 0:01:10.1]} 15. Be3
{[%clk 0:01:45.8]} 15... fxe6 {[%clk 0:01:04.8]} 16. Qg4 {[%clk 0:01:40.1]}
16... Rhf8+ {[%clk 0:00:28.2]} 17. Ke2 {[%clk 0:01:36.5]} 17... Qxg2+ {[%clk
0:00:16.2]} 18. Kd1 {[%clk 0:01:36.4]} 18... Qf3+ {[%clk 0:00:13.9]} 19. Qxf3
{[%clk 0:01:36.5]} 19... Rxf3 {[%clk 0:00:14.8]} 20. Bg5 {[%clk 0:01:30.8]}
20... Bxe1 {[%clk 0:00:12.4]} 21. Bxd8 {[%clk 0:01:30.6]} 21... Bxc3 {[%clk
0:00:12.9]} 22. Rb1 {[%clk 0:01:20]} 22... Kxd8 {[%clk 0:00:12.2]} 23. Ke2
{[%clk 0:01:20.7]} 23... Rh3 {[%clk 0:00:11.7]} 24. Rxb7 {[%clk 0:01:21]} 24...
Ba5 {[%clk 0:00:10.8]} 25. Rxa7 {[%clk 0:01:20.4]} 25... Bb6 {[%clk 0:00:11.2]}
26. Ra8+ {[%clk 0:01:20.8]} 26... Ke7 {[%clk 0:00:10.8]} 27. a4 {[%clk
0:01:21.7]} 27... Bxd4 {[%clk 0:00:10.5]} 28. a5 {[%clk 0:01:21.7]} 28... Rh2+
{[%clk 0:00:10.4]} 29. Kf3 {[%clk 0:01:21.4]} 29... Rh1 {[%clk 0:00:10.4]} 30.
a6 {[%clk 0:01:20.6]} 30... Ra1 {[%clk 0:00:10.7]} 31. Rh8 {[%clk 0:01:18.6]}
31... h6 {[%clk 0:00:10]} 32. Rc8 {[%clk 0:01:13.6]} 32... Kd6 {[%clk
0:00:10.1]} 33. Rd8+ {[%clk 0:01:13.5]} 33... Ke7 {[%clk 0:00:09.8]} 34. Rc8
{[%clk 0:01:13.7]} 34... Kd6 {[%clk 0:00:10.1]} 35. Rd8+ {[%clk 0:01:14.3]}
35... Ke7 {[%clk 0:00:10.4]} 36. Rb8 {[%clk 0:01:12.6]} 36... Kd6 {[%clk
0:00:10.2]} 37. Rb7 {[%clk 0:01:09.7]} 37... e5 {[%clk 0:00:09.6]} 38. Be2
{[%clk 0:01:08.7]} 38... e4+ {[%clk 0:00:09.6]} 39. Kg2 {[%clk 0:01:08.9]} 39...
Bb6 {[%clk 0:00:09.3]} 40. Rb8 {[%clk 0:01:08.8]} 40... g5 {[%clk 0:00:07.9]}
41. Rh8 {[%clk 0:01:08.7]} 41... Ra2 {[%clk 0:00:06.7]} 42. Rxh6+ {[%clk
0:01:08.8]} 42... Ke5 {[%clk 0:00:05.3]} 43. Bb5 {[%clk 0:01:04.4]} 43... Rxc2+
{[%clk 0:00:05.2]} 44. Kf1 {[%clk 0:01:04.5]} 44... Ra2 {[%clk 0:00:05.4]} 45.
Rh8 {[%clk 0:01:01.6]} 45... Kf4 {[%clk 0:00:05.5]} 46. Rf8+ {[%clk 0:01:01.6]}
46... Ke3 {[%clk 0:00:05.6]} 47. Re8 {[%clk 0:00:56.1]} 47... Kd4 {[%clk
0:00:05.7]} 48. Be2 {[%clk 0:00:49.5]} 48... Ke3 {[%clk 0:00:04.4]} 49. Rd8
{[%clk 0:00:50.1]} 49... Ra1+ {[%clk 0:00:04.6]} 50. Kg2 {[%clk 0:00:49.9]}
50... Kf4 {[%clk 0:00:04.8]} 51. Rxd5 {[%clk 0:00:40.5]} 51... Ra2 {[%clk
0:00:03.9]} 52. Kf1 {[%clk 0:00:38.9]} 52... Ra1+ {[%clk 0:00:04.3]} 53. Kg2
{[%clk 0:00:38.9]} 53... Ra2 {[%clk 0:00:04.5]} 54. Kf1 {[%clk 0:00:35.7]} 54...
Ra1+ {[%clk 0:00:05]} 55. Rd1 {[%clk 0:00:32.9]} 55... Rxd1+ {[%clk 0:00:04.5]}
56. Bxd1 {[%clk 0:00:33.8]} 56... g4 {[%clk 0:00:04.8]} 57. Be2 {[%clk
0:00:33.4]} 57... g3 {[%clk 0:00:05.1]} 58. Bb5 {[%clk 0:00:33.1]} 58... c5
{[%clk 0:00:05.1]} 59. Bc4 {[%clk 0:00:31.4]} 59... Ke5 {[%clk 0:00:05.2]} 60.
Kg2 {[%clk 0:00:30.4]} 60... Kd4 {[%clk 0:00:06.1]} 61. Bb5 {[%clk 0:00:26.4]}
61... c4 {[%clk 0:00:06.4]} 62. Kxg3 {[%clk 0:00:26.9]} 62... c3 {[%clk
0:00:06.6]} 63. Ba4 {[%clk 0:00:27.2]} 63... e3 {[%clk 0:00:06.3]} 64. Kf3
{[%clk 0:00:27]} 64... Kd3 {[%clk 0:00:06.5]} 65. Bb5+ {[%clk 0:00:27.3]} 65...
Kd2 {[%clk 0:00:06.3]} 66. Ba4 {[%clk 0:00:26.6]} 66... c2 {[%clk 0:00:06.3]}
67. Bxc2 {[%clk 0:00:26.3]} 67... Kxc2 {[%clk 0:00:07.2]} 68. Ke2 {[%clk
0:00:26.6]} 68... Kc3 {[%clk 0:00:07]} 69. Ke1 {[%clk 0:00:27.1]} 69... Kb4
{[%clk 0:00:07.6]} 70. Ke2 {[%clk 0:00:27.6]} 70... Ka5 {[%clk 0:00:07.6]} 71.
Kd3 {[%clk 0:00:27.2]} 71... Kxa6 {[%clk 0:00:08.5]} 72. Ke2 {[%clk 0:00:27.6]}
72... Kb7 {[%clk 0:00:09.1]} 73. Kd3 {[%clk 0:00:28.3]} 73... Kc6 {[%clk
0:00:09.5]} 74. Ke2 {[%clk 0:00:28.6]} 74... Kd5 {[%clk 0:00:09.9]} 75. Kd3
{[%clk 0:00:29]} 75... Ke5 {[%clk 0:00:10.2]} 76. Ke2 {[%clk 0:00:29.5]} 76...
Ke4 {[%clk 0:00:10.4]} 77. Ke1 {[%clk 0:00:29.9]} 77... Kd3 {[%clk 0:00:09.3]}
78. Kd1 {[%clk 0:00:30.2]} 78... e2+ {[%clk 0:00:07.8]} 79. Ke1 {[%clk
0:00:30.6]} 79... Ba5+ {[%clk 0:00:08.2]} 80. Kf2 {[%clk 0:00:31.1]} 80... e1=Q+
{[%clk 0:00:08.6]} 81. Kf3 {[%clk 0:00:31.5]} 81... Qe4+ {[%clk 0:00:08.8]} 82.
Kf2 {[%clk 0:00:31.8]} 82... Qe3+ {[%clk 0:00:08.8]} 83. Kg2 {[%clk 0:00:32.2]}
83... Qf4 {[%clk 0:00:08.6]} 84. Kh1 {[%clk 0:00:32.4]} 84... Qg4 {[%clk
0:00:08.5]} 85. Kh2 {[%clk 0:00:32.7]} 85... Ke2 {[%clk 0:00:08.3]} 86. Kh1
{[%clk 0:00:33.1]} 86... Kf1 {[%clk 0:00:08.2]} 87. Kh2 {[%clk 0:00:33.5]} 87...
Qg2# {[%clk 0:00:08.7]} 0-1

[Event "Early-Titled-Tuesday-Blitz-January-30-2024"]
[Site "Chess.com"]
[Date "2024.01.30"]
[Round "1"]
[White "Viktor_Poddubnyi"]
[Black "karinachess1"]
[Result "1/2-1/2"]
[WhiteElo "2325"]
[BlackElo "2636"]
[TimeControl "180+1"]
[EndTime "8:09:06 PST"]
[Termination "Game drawn by repetition"]

1. e4 {[%clk 0:03:00.9]} 1... e5 {[%clk 0:03:00.1]} 2. f4 {[%clk 0:03:00.4]}
2... d5 {[%clk 0:02:59.6]} 3. exd5 {[%clk 0:03:00.1]} 3... e4 {[%clk 0:02:59.7]}
4. d3 {[%clk 0:03:00.5]} 4... Qxd5 {[%clk 0:02:56.6]} 5. Nc3 {[%clk 0:02:59.8]}
5... Bb4 {[%clk 0:02:56.6]} 6. Bd2 {[%clk 0:03:00.3]} 6... Bxc3 {[%clk
0:02:56.2]} 7. Bxc3 {[%clk 0:02:58.5]} 7... Nf6 {[%clk 0:02:56.4]} 8. dxe4
{[%clk 0:02:53.3]} 8... Qxe4+ {[%clk 0:02:56.1]} 9. Qe2 {[%clk 0:02:53.3]} 9...
O-O {[%clk 0:02:47]} 10. Bxf6 {[%clk 0:02:24.7]} 10... Qxe2+ {[%clk 0:02:47]}
11. Bxe2 {[%clk 0:02:24.1]} 11... gxf6 {[%clk 0:02:47.9]} 12. O-O-O {[%clk
0:02:20.1]} 12... Nc6 {[%clk 0:02:44.3]} 13. Bf3 {[%clk 0:02:17.1]} 13... Be6
{[%clk 0:02:34.4]} 14. Ne2 {[%clk 0:01:58.6]} 14... Rfe8 {[%clk 0:02:19.8]} 15.
Nc3 {[%clk 0:01:30.1]} 15... a6 {[%clk 0:02:08.8]} 16. Nd5 {[%clk 0:01:18.7]}
16... Bxd5 {[%clk 0:02:06.2]} 17. Rxd5 {[%clk 0:01:16.3]} 17... Re7 {[%clk
0:01:59.4]} 18. Rc5 {[%clk 0:01:09.2]} 18... Nd8 {[%clk 0:01:47.2]} 19. Rd1
{[%clk 0:00:52.4]} 19... c6 {[%clk 0:01:47.6]} 20. f5 {[%clk 0:00:35.8]} 20...
Kg7 {[%clk 0:01:36.6]} 21. Rc4 {[%clk 0:00:32.9]} 21... b5 {[%clk 0:01:24.5]}
22. Rcd4 {[%clk 0:00:27]} 22... Nb7 {[%clk 0:01:22.2]} 23. Bxc6 {[%clk
0:00:22.3]} 23... Rc8 {[%clk 0:01:22.4]} 24. Bf3 {[%clk 0:00:15.8]} 24... Nc5
{[%clk 0:01:20.7]} 25. Kb1 {[%clk 0:00:13.9]} 25... Re5 {[%clk 0:01:18.1]} 26.
Rd5 {[%clk 0:00:13.2]} 26... Rce8 {[%clk 0:01:12.3]} 27. b3 {[%clk 0:00:13.7]}
27... b4 {[%clk 0:01:07.4]} 28. Kb2 {[%clk 0:00:12.7]} 28... a5 {[%clk
0:01:07.9]} 29. Rxe5 {[%clk 0:00:11.4]} 29... fxe5 {[%clk 0:01:08.8]} 30. Rd5
{[%clk 0:00:11.4]} 30... Nb7 {[%clk 0:01:02.4]} 31. Rb5 {[%clk 0:00:09.2]} 31...
Nd6 {[%clk 0:01:02.7]} 32. Rxa5 {[%clk 0:00:08.8]} 32... Nxf5 {[%clk 0:01:01.1]}
33. Be4 {[%clk 0:00:07.2]} 33... Nd6 {[%clk 0:00:58.9]} 34. Bc6 {[%clk 0:00:07]}
34... Re7 {[%clk 0:00:57.7]} 35. Kc1 {[%clk 0:00:06]} 35... f5 {[%clk
0:00:53.9]} 36. Kd2 {[%clk 0:00:06.3]} 36... f4 {[%clk 0:00:50.7]} 37. Ke2
{[%clk 0:00:05.3]} 37... e4 {[%clk 0:00:45.9]} 38. Rd5 {[%clk 0:00:05.8]} 38...
Re6 {[%clk 0:00:30.6]} 39. Bd7 {[%clk 0:00:05.3]} 39... Rf6 {[%clk 0:00:31]} 40.
Bg4 {[%clk 0:00:04.8]} 40... Rg6 {[%clk 0:00:21.6]} 41. h3 {[%clk 0:00:04.6]}
41... Nf7 {[%clk 0:00:17.9]} 42. Rd4 {[%clk 0:00:04.6]} 42... Rc6 {[%clk
0:00:17.4]} 43. Rxe4 {[%clk 0:00:04.6]} 43... Rxc2+ {[%clk 0:00:17.4]} 44. Kf1
{[%clk 0:00:04.4]} 44... Rxa2 {[%clk 0:00:14.1]} 45. Rxb4 {[%clk 0:00:04.6]}
45... Ra1+ {[%clk 0:00:09.6]} 46. Kf2 {[%clk 0:00:03.1]} 46... Ne5 {[%clk
0:00:10.1]} 47. Rxf4 {[%clk 0:00:02.5]} 47... Nd3+ {[%clk 0:00:10.5]} 48. Ke3
{[%clk 0:00:03.4]} 48... Nxf4 {[%clk 0:00:11.4]} 49. Kxf4 {[%clk 0:00:04.2]}
49... Rb1 {[%clk 0:00:11.6]} 50. Be6 {[%clk 0:00:03.6]} 50... Kf6 {[%clk
0:00:11.9]} 51. Bc4 {[%clk 0:00:04.5]} 51... h6 {[%clk 0:00:11.4]} 52. Kg3
{[%clk 0:00:05.4]} 52... Rb2 {[%clk 0:00:11.8]} 53. Kh2 {[%clk 0:00:06.3]} 53...
Kg5 {[%clk 0:00:12.3]} 54. Bd5 {[%clk 0:00:07.2]} 54... Kf4 {[%clk 0:00:12.7]}
55. Bc4 {[%clk 0:00:07.9]} 55... Rb1 {[%clk 0:00:11.5]} 56. Bf7 {[%clk
0:00:08.4]} 56... Kg5 {[%clk 0:00:11.5]} 57. Bc4 {[%clk 0:00:09.3]} 57... Rb2
{[%clk 0:00:11.8]} 58. Bg8 {[%clk 0:00:09.9]} 58... h5 {[%clk 0:00:12.2]} 59.
Bc4 {[%clk 0:00:10.4]} 59... h4 {[%clk 0:00:13.1]} 60. Bg8 {[%clk 0:00:10.6]}
60... Kf4 {[%clk 0:00:13.7]} 61. Bc4 {[%clk 0:00:11]} 61... Ke3 {[%clk
0:00:14.2]} 62. Bd5 {[%clk 0:00:11]} 62... Kf2 {[%clk 0:00:14.5]} 63. Bc4 {[%clk
0:00:09.7]} 63... Rb1 {[%clk 0:00:13.3]} 64. Bd5 {[%clk 0:00:10]} 64... Rb2
{[%clk 0:00:09.5]} 65. Bf3 {[%clk 0:00:08.8]} 65... Rxb3 {[%clk 0:00:08.5]} 66.
Ba8 {[%clk 0:00:09.3]} 66... Rg3 {[%clk 0:00:08.4]} 67. Bf3 {[%clk 0:00:09.2]}
67... Ke3 {[%clk 0:00:07.6]} 68. Ba8 {[%clk 0:00:09]} 68... Rg5 {[%clk
0:00:08.3]} 69. Bf3 {[%clk 0:00:09.4]} 69... Kf4 {[%clk 0:00:09.2]} 70. Ba8
{[%clk 0:00:09.3]} 70... Re5 {[%clk 0:00:10.1]} 71. Bf3 {[%clk 0:00:09.4]} 71...
Ke3 {[%clk 0:00:10.2]} 72. Ba8 {[%clk 0:00:08.7]} 72... Kf2 {[%clk 0:00:10.6]}
73. Bf3 {[%clk 0:00:09.3]} 73... Re3 {[%clk 0:00:10.2]} 74. Ba8 {[%clk
0:00:09.7]} 74... Rg3 {[%clk 0:00:10.3]} 75. Bf3 {[%clk 0:00:10.1]} 75... Rg7
{[%clk 0:00:11.1]} 76. Ba8 {[%clk 0:00:10.1]} 76... Ra7 {[%clk 0:00:12]} 77. Bf3
{[%clk 0:00:10.4]} 77... Rc7 {[%clk 0:00:12.4]} 78. Bd5 {[%clk 0:00:10.3]} 78...
Rc5 {[%clk 0:00:12.6]} 79. Bf3 {[%clk 0:00:10.8]} 79... Rc8 {[%clk 0:00:12.3]}
80. Bb7 {[%clk 0:00:11]} 80... Rb8 {[%clk 0:00:12.8]} 81. Bf3 {[%clk 0:00:11.4]}
81... Rb3 {[%clk 0:00:13.2]} 82. Bc6 {[%clk 0:00:11.5]} 82... Rg3 {[%clk
0:00:14.1]} 83. Bf3 {[%clk 0:00:11.7]} 1/2-1/2